bitfinex/quotes_SOLUSD_20260125
["timestamp","ask_amount","ask_price","bid_price","bid_amount"]
[1769361660949,4.3424648,122.03,122.0,13.47963167]
[1769361661854,4.3424648,122.03,122.01,5.2829915]
[1769361662053,4.3424648,122.05,122.01,5.2829915]
[1769361664071,4.3424648,122.05,122.02,5.2829915]
[1769361665376,0.2,122.07,122.01,28.68615375]
[1769361665676,4.65828381,122.07,122.03,13.47754934]
[1769361666453,4.65828381,122.07,122.02,8.19528323]
[1769361666660,4.65828381,122.07,122.03,5.2829915]
[1769361668955,0.2,122.07,122.05,5.2829915]
[1769361669156,4.65828381,122.07,122.05,5.2829915]
[1769361669482,0.2,122.07,122.06,5.2829915]
[1769361669683,0.2,122.07,122.05,5.2829915]
[1769361669852,0.2,122.07,122.06,5.2829915]
[1769361670375,0.2,122.07,122.05,5.2829915]
[1769361670875,4.65828381,122.07,122.03,8.27795623]
[1769361671075,4.65828381,122.07,122.05,5.2829915]
[1769361672185,4.65828381,122.07,122.04,5.2829915]
[1769361672373,4.65828381,122.07,122.03,5.2829915]
[1769361672877,4.65828381,122.07,122.03,13.47725977]
[1769361673267,4.65828381,122.07,122.04,13.47693982]
[1769361673786,4.65828381,122.07,122.05,5.2829915]
[1769361673982,0.2,122.07,122.05,5.2829915]
[1769361674686,0.2,122.07,122.06,5.2829915]
[1769361678095,0.2,122.09,122.06,13.47555002]
[1769361678270,4.7,122.09,122.07,5.2829915]
[1769361678472,4.7,122.09,122.06,5.2829915]
[1769361679285,4.7,122.09,122.05,5.2829915]
[1769361679989,4.7,122.09,122.06,5.2829915]
[1769361680185,0.2,122.09,122.08,5.2829915]
[1769361680981,4.6,122.12,122.08,5.2829915]
[1769361681183,4.6,122.12,122.09,5.2829915]
[1769361681387,4.6,122.12,122.08,5.2829915]
[1769361681588,4.6,122.12,122.08,2.29826692]
[1769361683698,4.6,122.12,122.09,2.29826692]
[1769361685304,0.2,122.14,122.11,2.29826692]
[1769361685604,4.7,122.14,122.12,2.29826692]
[1769361686194,4.27589013,122.15,122.09,28.66713119]
[1769361686503,4.5,122.15,122.12,2.29826692]
[1769361687085,4.5,122.15,122.07,28.67094221]
[1769361687287,4.5,122.14,122.1,2.29826692]
[1769361688796,4.5,122.12,122.08,2.29826692]
[1769361689202,4.5,122.12,122.08,10.48953662]
[1769361689900,4.5,122.12,122.09,2.29826692]
[1769361690896,4.5,122.12,122.08,10.48953662]
[1769361691616,4.5,122.12,122.09,2.29826692]
[1769361693818,4.5,122.12,122.05,28.6767718]
[1769361694012,4.5,122.11,122.07,2.29826692]
[1769361695796,4.5,122.11,122.08,8.19134993]
[1769361697326,4.5,122.13,122.09,2.29826692]
[1769361697797,4.5,122.13,122.1,2.29826692]
[1769361697997,4.5,122.11,122.07,2.29826692]
[1769361698201,4.5,122.11,122.08,8.19126077]
[1769361698630,4.5,122.12,122.09,2.29826692]
[1769361698801,4.5,122.15,122.1,10.48819438]
[1769361702299,4.5,122.15,122.04,205.76892843]
[1769361702300,4.5,122.14,122.07,20.47934085]
[1769361702521,4.5,122.12,122.08,10.48927463]
[1769361702724,4.5,122.12,122.09,8.19065933]
[1769361704825,4.5,122.12,122.08,8.19121004]
[1769361707112,4.5,122.12,122.07,62.2]
[1769361707318,4.5,122.12,122.07,64.49826692]
[1769361707931,4.5,122.12,122.07,72.69023838]
[1769361710027,4.5,122.12,122.08,2.29826692]
[1769361710324,4.5,122.14,122.09,2.29826692]
[1769361711232,4.5,122.14,122.11,2.29826692]
[1769361711409,4.5,122.14,122.12,2.29826692]
[1769361711607,4.5,122.15,122.13,2.29826692]
[1769361711830,4.5,122.16,122.14,2.29826692]
[1769361713727,0.2,122.17,122.15,2.29826692]
[1769361713937,4.6,122.18,122.12,8.18841891]
[1769361714108,4.5,122.16,122.12,2.29826692]
[1769361714931,4.5,122.15,122.11,2.29826692]
[1769361715127,4.5,122.15,122.09,8.19030585]
[1769361715128,4.5,122.15,122.1,2.29826692]
[1769361715426,4.5,122.14,122.09,2.29826692]
[1769361715629,4.5,122.13,122.08,10.4889148]
[1769361716829,4.5,122.11,122.07,2.29783174]
[1769361717032,4.5,122.11,122.06,2.29783174]
[1769361718444,4.5,122.11,122.06,10.49048338]
[1769361718930,4.5,122.11,122.07,2.29783174]
[1769361719938,4.5,122.11,122.08,2.29783174]
[1769361720332,4.5,122.11,122.06,8.19265164]
[1769361720333,4.5,122.13,122.09,2.29783174]
[1769361722837,4.5,122.13,122.1,2.29783174]
[1769361723142,4.5,122.12,122.05,20.48241938]
[1769361723327,4.5,122.12,122.1,2.29783174]
[1769361725735,4.5,122.15,122.11,2.29783174]
[1769361725936,4.5,122.15,122.1,2.29783174]
[1769361726321,4.5,122.15,122.12,2.29783174]
[1769361726520,4.5,122.15,122.13,2.29783174]
[1769361727027,4.5,122.16,122.14,2.29783174]
[1769361727241,4.5,122.16,122.13,2.29783174]
[1769361728446,4.5,122.16,122.12,2.29783174]
[1769361731353,4.5,122.16,122.13,2.29783174]
[1769361732652,4.5,122.14,122.09,2.29783174]
[1769361733536,4.5,122.14,122.09,10.48816717]
[1769361733853,4.5,122.14,122.1,2.29783174]
[1769361734944,4.5,122.14,122.09,64.49783174]
[1769361735545,4.5,122.14,122.1,2.29783174]
[1769361736554,4.5,122.14,122.09,64.49783174]
[1769361736755,4.5,122.14,122.08,62.2]
[1769361737057,4.5,122.11,122.08,62.2]
[1769361737253,4.5,122.11,122.07,10.48960349]
[1769361737254,4.5,122.11,122.05,62.2]
[1769361737436,4.5,122.1,122.06,2.29783174]
[1769361737631,4.5,122.1,122.05,10.49111068]
[1769361737832,4.5,122.09,122.04,2.29783174]
[1769361738044,4.5,122.09,122.05,10.4906995]
[1769361738244,4.5,122.09,122.01,2.49783174]
[1769361738245,4.5,122.09,122.06,2.29783174]
[1769361738446,4.5,122.11,122.07,10.48985166]
[1769361738663,4.5,122.11,122.08,2.29783174]
[1769361738961,4.5,122.15,122.1,2.29783174]
[1769361740133,4.5,122.13,122.08,8.19124939]
[1769361740338,4.5,122.13,122.08,10.48908113]
[1769361742261,4.5,122.13,122.09,2.29783174]
[1769361743153,4.5,122.16,122.11,2.29783174]
[1769361743742,6.79783174,122.16,122.11,2.29783174]
[1769361743950,4.5,122.15,122.1,8.18995038]
[1769361744260,4.5,122.15,122.1,10.48778212]
[1769361747974,4.5,122.15,122.11,2.29783174]
[1769361748351,4.5,122.15,122.12,2.29783174]
[1769361748559,4.5,122.15,122.1,8.18995038]
[1769361748763,4.5,122.15,122.11,2.29783174]
[1769361749588,4.5,122.15,122.12,2.29783174]
[1769361750248,4.5,122.15,122.11,2.29783174]
[1769361751874,4.5,122.15,122.1,72.6875328]
[1769361754452,4.5,122.16,122.12,2.29783174]
[1769361754651,4.5,122.16,122.13,2.29783174]
[1769361757555,4.5,122.16,122.12,8.18842011]
[1769361757755,4.5,122.16,122.13,2.29783174]
[1769361760276,4.5,122.16,122.12,2.29783174]
[1769361762960,4.5,122.16,122.12,10.48647509]
[1769361763871,4.5,122.15,122.11,62.2]
[1769361764069,4.5,122.14,122.11,62.2]
[1769361764690,4.5,122.14,122.09,72.68815998]
[1769361765782,4.5,122.14,122.1,2.29783174]
[1769361765967,4.5,122.14,122.11,2.29783174]
[1769361771176,4.5,122.14,122.1,10.48779617]
[1769361772887,4.5,122.14,122.1,8.18996443]
[1769361773088,4.5,122.14,122.09,72.68835399]
[1769361774392,4.5,122.14,122.1,2.29783174]
[1769361776401,4.5,122.14,122.09,72.68835399]
[1769361776571,4.5,122.14,122.09,10.48835399]
[1769361776993,4.5,122.14,122.08,70.39091245]
[1769361777199,4.5,122.11,122.08,62.2]
[1769361777406,4.5,122.11,122.07,8.19177988]
[1769361777604,4.5,122.11,122.08,8.19131102]
[1769361777895,4.5,122.11,122.07,10.48996427]
[1769361779695,4.5,122.1,122.05,10.49107775]
[1769361779999,4.5,122.1,122.06,10.49058365]
[1769361780184,4.5,122.1,122.06,2.29826432]
[1769361780974,4.5,122.1,122.06,8.19249944]
[1769361781477,4.5,122.08,122.02,20.48725814]
[1769361781685,4.5,122.08,122.03,10.49256593]
[1769361782198,4.5,122.07,122.03,10.49256593]
[1769361784612,4.5,122.06,122.01,8.39539071]
[1769361784801,4.5,122.05,122.01,0.2]
[1769361785189,4.5,122.07,122.03,2.29826432]
[1769361785398,4.5,122.1,122.06,2.29826432]
[1769361785588,4.5,122.1,122.03,28.68132383]
[1769361785589,4.5,122.1,122.07,2.29826432]
[1769361786696,4.5,122.1,122.06,2.29826432]
[1769361787129,4.5,122.1,122.05,2.29826432]
[1769361787299,4.5,122.09,122.05,2.29826432]
[1769361787611,4.5,122.09,122.05,10.49148296]
[1769361787913,4.5,122.11,122.06,10.49057958]
[1769361788207,4.5,122.11,122.08,2.29826432]
[1769361788709,4.5,122.12,122.09,2.29826432]
[1769361789005,4.5,122.15,122.11,2.29826432]
[1769361790200,4.5,122.15,122.1,2.29826432]
[1769361790914,4.5,122.14,122.1,2.29826432]
[1769361792601,4.5,122.12,122.09,2.29826432]
[1769361793805,4.5,122.12,122.08,10.4893731]
[1769361793997,4.5,122.12,122.09,2.29826432]
[1769361798802,4.5,122.12,122.08,2.29826432]
[1769361799702,4.5,122.12,122.09,2.29826432]
[1769361800012,4.5,122.12,122.08,2.29826432]
[1769361802998,4.5,122.12,122.09,2.29826432]
[1769361803908,4.5,122.12,122.08,2.29826432]
[1769361804818,4.5,122.11,122.06,62.2]
[1769361805006,4.5,122.11,122.06,2.29826432]
[1769361805518,4.5,122.1,122.05,2.29826432]
[1769361806020,4.5,122.1,122.06,2.29826432]
[1769361807020,4.5,122.08,122.04,2.29826432]
[1769361807715,4.5,122.08,122.03,2.29826432]
[1769361808617,6.79826432,122.08,122.03,2.29826432]
[1769361808810,4.5,122.07,122.02,2.29826432]
[1769361809018,4.5,122.06,122.02,2.29826432]
[1769361809224,4.5,122.06,122.01,2.49826432]
[1769361812120,4.5,122.05,122.01,2.49826432]
[1769361812326,4.5,122.05,122.02,2.29826432]
[1769361812822,4.5,122.05,122.01,0.2]
[1769361812999,4.5,122.05,122.01,2.49826432]
[1769361813199,4.5,122.05,122.02,2.29826432]
[1769361815314,4.5,122.08,122.04,2.29826432]
[1769361815514,2.29826432,122.12,122.07,2.29826432]
[1769361815730,10.48626071,122.13,122.08,2.29826432]
[1769361816026,8.18799639,122.13,122.08,2.29826432]
[1769361816601,10.48626071,122.13,122.08,2.29826432]
[1769361817332,2.29826432,122.12,122.07,2.29826432]
[1769361817533,4.18318595,122.11,122.07,2.29826432]
[1769361817827,4.18318595,122.1,122.04,4.26367415]
[1769361818034,4.18318595,122.09,122.05,2.29826432]
[1769361818532,4.18318595,122.09,122.06,2.29826432]
[1769361823238,4.18318595,122.1,122.07,2.29826432]
[1769361823928,33.22717011,122.12,122.07,6.56193847]
[1769361823929,4.18318595,122.11,122.07,6.56193847]
[1769361824238,4.18318595,122.11,122.08,2.29826432]
[1769361825028,4.18318595,122.11,122.07,2.29826432]
[1769361827514,4.18318595,122.09,122.05,2.29826432]
[1769361827834,4.18318595,122.09,122.05,6.56193847]
[1769361831539,4.18318595,122.09,122.06,4.26367415]
[1769361831837,4.18318595,122.12,122.08,6.56193847]
[1769361832431,4.18318595,122.12,122.08,2.29826432]
[1769361834531,4.18318595,122.11,122.07,2.29826432]
[1769361834722,4.18318595,122.1,122.06,6.56193847]
[1769361838142,4.18318595,122.1,122.07,2.29826432]
[1769361838339,2.29826432,122.12,122.07,6.56193847]
[1769361838649,5.34408856,122.13,122.08,2.29826432]
[1769361838650,4.18318595,122.11,122.08,2.29826432]
[1769361839746,4.18318595,122.11,122.08,2.29843463]
[1769361840149,4.26536669,122.1,122.08,2.29843463]
[1769361840346,4.18318595,122.13,122.1,4.26367415]
[1769361840551,4.18318595,122.13,122.1,2.29843463]
[1769361842336,4.18318595,122.14,122.12,2.29843463]
[1769361842848,4.18318595,122.14,122.11,6.56210878]
[1769361843048,4.18318595,122.14,122.11,2.29843463]
[1769361843352,4.18318595,122.14,122.1,2.29843463]
[1769361843553,12.37064082,122.14,122.08,4.14700411]
[1769361843738,4.0704606,122.12,122.08,6.44543874]
[1769361845327,4.0704606,122.12,122.09,2.29843463]
[1769361846153,4.0704606,122.12,122.08,6.44543874]
[1769361847750,4.0704606,122.11,122.07,4.14700411]
[1769361847952,4.0704606,122.11,122.07,6.44543874]
[1769361848144,4.0704606,122.11,122.08,2.29843463]
[1769361849558,4.0704606,122.11,122.08,6.44543874]
[1769361850853,4.0704606,122.11,122.08,2.29843463]
[1769361853552,4.0704606,122.11,122.04,70.39375706]
[1769361853759,4.0704606,122.1,122.06,2.29843463]
[1769361857056,4.33526849,122.09,122.05,2.29843463]
[1769361857356,4.33526849,122.09,122.04,6.50100411]
[1769361857533,4.33526849,122.07,122.02,4.20256948]
[1769361857734,2.29843463,122.08,122.01,0.2]
[1769361857735,4.33526849,122.05,122.01,0.2]
[1769361857936,4.33526849,122.04,122.01,0.2]
[1769361858242,4.33526849,122.04,122.0,2.29843463]
[1769361862173,4.33526849,122.03,121.98,2.73093848]
[1769361862346,4.33526849,122.03,121.99,0.43250385]
[1769361862745,4.33526849,122.02,121.98,0.43250385]
[1769361862942,4.33526849,122.02,121.98,2.73093848]
[1769361863878,4.33526849,122.0,121.97,0.2]
[1769361867249,4.28950121,122.0,121.97,0.2]
[1769361867543,2.29843463,122.06,122.0,0.47827113]
[1769361867757,2.29843463,122.06,122.0,2.77670576]
[1769361867957,7.64252319,122.06,122.0,2.29843463]
[1769361868352,2.29843463,122.05,122.0,2.29843463]
[1769361868863,2.29843463,122.04,121.99,2.29843463]
[1769361869060,2.29843463,122.04,121.98,2.77670576]
[1769361869262,4.33526849,122.03,121.98,2.77670576]
[1769361870154,4.33526849,122.02,121.97,2.97670576]
[1769361870358,4.33526849,122.02,121.97,11.17542086]
[1769361871771,4.33526849,122.02,121.99,2.29843463]
[1769361872265,4.33526849,122.02,121.99,2.77670576]
[1769361872468,4.33526849,122.02,121.98,2.29843463]
[1769361873554,4.33526849,122.02,121.98,2.77670576]
[1769361873755,4.33526849,122.02,121.95,0.2]
[1769361873756,4.42413283,121.98,121.95,0.2]
[1769361873961,4.42413283,121.97,121.95,0.2]
[1769361877363,4.42413283,121.98,121.95,0.2]
[1769361878661,4.42413283,121.97,121.93,10.69934227]
[1769361878866,4.42413283,121.97,121.93,11.5776134]
[1769361879378,4.42413283,121.97,121.94,2.29843463]
[1769361879778,4.42413283,121.97,121.94,3.17670576]
[1769361880367,4.42413283,122.0,121.96,0.87827113]
[1769361880573,4.42413283,122.0,121.96,3.17670576]
[1769361881871,27.18413283,122.01,121.97,3.17670576]
[1769361883476,4.42413283,122.0,121.97,2.29843463]
[1769361884672,4.42413283,122.01,121.97,3.17670576]
[1769361884857,4.42413283,122.01,121.99,2.29843463]
[1769361885475,4.42413283,122.01,121.97,2.29843463]
[1769361885674,4.42413283,121.99,121.95,63.07827113]
[1769361885872,4.42413283,121.99,121.94,3.17670576]
[1769361886184,4.42413283,121.99,121.95,2.29843463]
[1769361888477,4.42413283,121.99,121.95,3.17670576]
[1769361891585,4.42413283,122.02,121.97,3.17670576]
[1769361892668,4.42413283,122.01,121.97,3.17670576]
[1769361892877,4.42413283,122.01,121.96,2.29843463]
[1769361893184,4.42413283,122.0,121.96,3.17670576]
[1769361894177,4.42413283,122.0,121.96,0.87827113]
[1769361894392,4.42413283,122.0,121.96,3.17670576]
[1769361894703,4.42413283,122.0,121.96,0.87827113]
[1769361895484,4.42413283,121.99,121.94,3.17670576]
[1769361895687,4.42413283,121.98,121.94,3.17670576]
[1769361895887,4.42413283,121.98,121.94,11.37737725]
[1769361896775,4.42413283,121.98,121.94,9.07894262]
[1769361896988,4.42413283,121.98,121.95,2.29843463]
[1769361897494,4.42413283,122.0,121.95,3.17670576]
[1769361898976,4.42413283,122.0,121.96,3.17670576]
[1769361900378,4.42413283,121.99,121.95,3.17670576]
[1769361900588,4.42413283,121.97,121.93,1.07827113]
[1769361901096,4.42413283,121.96,121.93,1.07827113]
[1769361901597,4.42413283,121.98,121.94,3.182292]
[1769361901895,4.42413283,121.98,121.95,2.30402087]
[1769361902099,4.42413283,121.98,121.94,3.182292]
[1769361902286,4.42413283,121.98,121.94,0.87827113]
[1769361902690,4.42413283,121.98,121.93,3.382292]
[1769361903692,4.48580525,121.97,121.93,0.2]
[1769361903897,4.48580525,121.95,121.93,0.2]
[1769361904379,4.48580525,121.95,121.92,0.2]
[1769361904584,4.48580525,121.95,121.92,3.582292]
[1769361905200,4.48580525,121.95,121.92,11.78434881]
[1769361905507,4.48580525,121.98,121.94,3.382292]
[1769361906091,4.48580525,121.98,121.95,3.382292]
[1769361906408,4.48580525,121.98,121.95,2.30402087]
[1769361907100,4.48580525,121.98,121.94,3.382292]
[1769361908288,4.48580525,121.98,121.95,2.30402087]
[1769361909586,4.48580525,121.98,121.94,3.382292]
[1769361910806,4.48580525,121.98,121.95,2.30402087]
[1769361911010,4.48580525,121.99,121.96,3.382292]
[1769361911200,4.48580525,121.99,121.95,1.07827113]
[1769361911511,4.48580525,121.98,121.95,1.07827113]
[1769361911804,4.48580525,121.98,121.92,3.582292]
[1769361911805,4.48580525,121.97,121.92,3.582292]
[1769361912107,4.48580525,121.96,121.92,0.2]
[1769361912312,4.48580525,121.96,121.92,2.50402087]
[1769361912714,4.48580525,121.96,121.92,0.2]
[1769361913214,4.48580525,121.96,121.92,3.582292]
[1769361914001,4.48580525,121.96,121.92,0.2]
[1769361914309,4.48580525,121.95,121.92,0.2]
[1769361914510,4.48580525,121.95,121.92,1.27827113]
[1769361914699,4.48580525,121.95,121.92,2.50402087]
[1769361915009,4.48580525,121.95,121.92,0.2]
[1769361916913,2.30402087,121.96,121.92,1.27827113]
[1769361917105,4.35406647,121.95,121.92,0.2]
[1769361923299,6.65808734,121.96,121.92,0.2]
[1769361923500,4.35406647,121.95,121.92,0.2]
[1769361925506,4.35406647,121.94,121.92,0.2]
[1769361927806,6.65808734,121.93,121.89,1.27827113]
[1769361928002,4.35406647,121.93,121.89,1.27827113]
[1769361928323,4.35406647,121.93,121.89,11.78637175]
[1769361930125,6.65808734,121.93,121.89,1.27827113]
[1769361930299,2.30402087,121.93,121.89,0.2]
[1769361931210,2.30402087,121.91,121.89,0.2]
[1769361931816,2.30402087,121.92,121.89,0.2]
[1769361932325,4.35406647,121.91,121.89,0.2]
[1769361937242,1.60400058,121.9,121.89,0.2]
[1769361939219,4.0732533,121.89,121.87,0.2]
[1769361940421,5.67725388,121.9,121.87,4.42496802]
[1769361942525,4.0732533,121.92,121.89,4.02833702]
[1769361942919,22.78,121.94,121.9,4.02833702]
[1769361943139,4.0732533,121.95,121.92,4.02833702]
[1769361943447,4.0732533,121.95,121.87,28.91907823]
[1769361943448,4.0732533,121.94,121.91,4.02833702]
[1769361943736,4.0732533,121.93,121.89,4.02833702]
[1769361944819,4.0732533,121.92,121.88,6.33235789]
[1769361945246,4.0732533,121.92,121.88,4.02833702]
[1769361945437,4.0732533,121.92,121.88,6.33235789]
[1769361945948,4.0732533,121.92,121.89,4.02833702]
[1769361946616,4.0732533,121.94,121.9,4.02833702]
[1769361947623,4.0732533,121.94,121.89,6.33235789]
[1769361948020,4.0732533,121.95,121.92,4.02833702]
[1769361948248,4.0732533,121.95,121.91,6.33235789]
[1769361948425,4.0732533,121.95,121.9,6.33235789]
[1769361948952,4.0732533,121.94,121.9,6.33235789]
[1769361949322,4.0732533,121.94,121.91,4.02833702]
[1769361949524,4.0732533,121.94,121.91,6.33235789]
[1769361950248,4.27102108,121.94,121.92,4.02833702]
[1769361950449,4.27102108,121.94,121.91,6.33235789]
[1769361950649,8.34427438,121.94,121.89,4.02833702]
[1769361950850,8.34427438,121.94,121.88,6.33235789]
[1769361950851,4.0732533,121.92,121.88,6.33235789]
[1769361951154,4.0732533,121.91,121.87,76.93745821]
[1769361951346,4.0732533,121.91,121.88,4.02833702]
[1769361951531,4.0732533,121.92,121.88,4.02833702]
[1769361952042,4.0732533,121.92,121.88,6.33235789]
[1769361952351,4.0732533,121.93,121.9,4.02833702]
[1769361953028,4.0732533,121.93,121.89,6.33235789]
[1769361956157,8.34427438,121.94,121.9,4.02833702]
[1769361958348,4.27102108,121.94,121.9,4.02833702]
[1769361958654,4.0732533,121.93,121.9,6.33235789]
[1769361960560,4.27102108,121.94,121.92,2.30402087]
[1769361960933,4.0732533,121.95,121.92,2.30402087]
[1769361961659,4.0732533,121.95,121.92,6.33235789]
[1769361961839,4.0732533,121.95,121.91,4.02833702]
[1769361962156,4.0732533,121.93,121.89,68.53235789]
[1769361962956,4.0732533,121.93,121.89,66.22833702]
[1769361964145,4.0732533,121.93,121.89,4.02833702]
[1769361965163,2.30541643,121.95,121.9,4.02833702]
[1769361965341,4.28332418,121.94,121.9,6.33375345]
[1769361965543,4.28332418,121.94,121.9,4.02833702]
[1769361966763,4.28332418,121.93,121.89,6.33375345]
[1769361967964,4.28332418,121.94,121.9,4.02833702]
[1769361969544,4.28332418,121.93,121.89,6.33375345]
[1769361969743,4.28332418,121.93,121.89,4.02833702]
[1769361970166,4.28332418,121.91,121.87,76.93878739]
[1769361970466,4.28332418,121.93,121.88,14.538462]
[1769361971162,4.28332418,121.93,121.88,6.33375345]
[1769361972163,4.28332418,121.92,121.87,6.53375345]
[1769361972677,4.28332418,121.91,121.87,6.53375345]
[1769361974273,4.28332418,121.91,121.87,4.22833702]
[1769361974574,4.28332418,121.9,121.87,0.2]
[1769361974866,6.58874061,121.9,121.87,0.2]
[1769361975081,4.06365705,121.89,121.87,0.2]
[1769361976572,4.06365705,121.88,121.87,0.2]
[1769361976772,4.06365705,121.88,121.84,0.2]
[1769361976773,4.06365705,121.87,121.84,0.2]
[1769361976948,4.06365705,121.86,121.84,0.2]
[1769361977260,4.06365705,121.9,121.85,6.48405127]
[1769361977465,4.06365705,121.9,121.86,2.30541643]
[1769361977655,4.06365705,121.91,121.88,4.17863484]
[1769361977865,4.06365705,121.91,121.88,6.48405127]
[1769361978169,4.06365705,121.93,121.89,2.30541643]
[1769361978359,4.06365705,121.93,121.88,6.48405127]
[1769361979866,4.06365705,121.93,121.88,4.17863484]
[1769361980068,4.06365705,121.92,121.88,6.48405127]
[1769361980266,4.06365705,121.92,121.88,4.17863484]
[1769361980459,4.06365705,121.92,121.87,8.20544284]
[1769361980772,4.06365705,121.92,121.88,6.48405127]
[1769361981356,26.84365705,121.94,121.9,4.17863484]
[1769361981571,26.84365705,121.94,121.9,6.48405127]
[1769361981775,4.06365705,121.93,121.9,6.48405127]
[1769361982164,4.06365705,121.92,121.87,6.48405127]
[1769361982472,4.06365705,121.92,121.88,2.30541643]
[1769361983282,4.06365705,121.92,121.89,4.17863484]
[1769361983578,4.06365705,121.92,121.89,6.48405127]
[1769361983883,4.06365705,121.93,121.9,4.17863484]
[1769361984075,4.06365705,121.93,121.89,6.48405127]
[1769361984585,4.06365705,121.93,121.89,2.30541643]
[1769361984772,4.06365705,121.93,121.88,6.48405127]
[1769361985361,4.06365705,121.92,121.88,6.48405127]
[1769361986377,4.06365705,121.91,121.87,4.17863484]
[1769361986561,4.06365705,121.91,121.87,6.48405127]
[1769361986755,4.06365705,121.91,121.88,4.17863484]
[1769361986960,8.20162914,121.93,121.9,4.17863484]
[1769361986961,4.06365705,121.93,121.9,4.17863484]
[1769361987371,26.84365705,121.95,121.92,4.17863484]
[1769361987568,4.06365705,121.94,121.9,6.48405127]
[1769361988562,4.06365705,121.94,121.89,6.48405127]
[1769361988768,6.36907348,121.94,121.89,6.48405127]
[1769361988969,4.06365705,121.93,121.89,4.17863484]
[1769361989168,4.06365705,121.92,121.88,6.48405127]
[1769361989974,4.06365705,121.92,121.87,10.51056093]
[1769361990180,4.06365705,121.91,121.86,6.48405127]
[1769361990363,4.06365705,121.91,121.87,4.17863484]
[1769361990888,4.06365705,121.93,121.89,4.17863484]
[1769361991063,4.06365705,121.92,121.88,4.17863484]
[1769361991262,4.06365705,121.92,121.88,6.48405127]
[1769361992186,4.06365705,121.92,121.86,4.17863484]
[1769361992374,4.06365705,121.91,121.87,4.17863484]
[1769361993070,4.06365705,121.91,121.87,6.48405127]
[1769361993273,4.06365705,121.91,121.87,4.17863484]
[1769361993780,4.32032228,121.89,121.84,4.42833702]
[1769361993968,4.32032228,121.89,121.84,6.73375345]
[1769361993969,4.32032228,121.88,121.84,6.73375345]
[1769361994285,4.32032228,121.88,121.84,4.42833702]
[1769361994967,4.32032228,121.88,121.85,4.22833702]
[1769361995482,4.32032228,121.88,121.84,6.73375345]
[1769361995665,4.32032228,121.89,121.85,6.53375345]
[1769361995864,4.32032228,121.89,121.84,6.73375345]
[1769361996402,4.32032228,121.87,121.84,0.2]
[1769361996570,6.62573871,121.86,121.84,0.2]
[1769361996889,4.32032228,121.85,121.84,0.2]
[1769361997267,4.32032228,121.85,121.82,0.2]
[1769361998572,4.32032228,121.88,121.84,4.24083208]
[1769361999292,4.32032228,121.88,121.84,6.54624851]
[1769361999473,4.32032228,121.89,121.85,4.24083208]
[1769362000195,6.62573871,121.89,121.83,12.4489697]
[1769362000395,4.32032228,121.87,121.83,4.24083208]
[1769362000785,4.32032228,121.88,121.85,4.24083208]
[1769362000973,4.32032228,121.89,121.85,4.24083208]
[1769362001280,4.32032228,121.91,121.87,4.24083208]
[1769362001484,4.32032228,121.9,121.87,4.24083208]
[1769362001680,6.62573871,121.9,121.86,4.24083208]
[1769362001902,4.32032228,121.88,121.84,6.54624851]
[1769362002306,4.32032228,121.88,121.84,4.24083208]
[1769362002679,2.30541643,121.88,121.84,4.24083208]
[1769362002881,4.32032228,121.87,121.84,4.24083208]
[1769362003797,4.32032228,121.89,121.85,4.24083208]
[1769362004787,4.32032228,121.88,121.83,4.24083208]
[1769362004993,6.62573871,121.88,121.83,4.24083208]
[1769362005295,4.32032228,121.88,121.84,6.54624851]
[1769362007505,4.32032228,121.88,121.85,4.24083208]
[1769362007985,4.32032228,121.88,121.84,6.54624851]
[1769362008178,4.32032228,121.85,121.82,0.2]
[1769362010095,5.34408856,121.9,121.83,4.24083208]
[1769362010308,4.32032228,121.91,121.87,6.54624851]
[1769362010682,4.32032228,121.9,121.85,6.54624851]
[1769362010905,4.32032228,121.9,121.85,4.24083208]
[1769362011082,4.32032228,121.89,121.84,6.54624851]
[1769362011294,4.32032228,121.88,121.83,6.54624851]
[1769362011806,4.32032228,121.88,121.83,2.30541643]
[1769362012106,4.32032228,121.88,121.84,4.24083208]
[1769362012401,4.32032228,121.88,121.84,6.54624851]
[1769362015202,4.32032228,121.88,121.84,4.24083208]
[1769362015894,4.32032228,121.86,121.82,0.2]
[1769362016287,4.32032228,121.86,121.82,2.50541643]
[1769362016487,4.32032228,121.86,121.82,6.74624851]
[1769362016890,4.32032228,121.86,121.82,4.44083208]
[1769362017492,6.62573871,121.87,121.82,4.44083208]